Workbook

Sheet Instructions
G2: Electric Vehicle Savings Calculator
A5: Welcome to the Electric Vehicle Savings Calculator
A7: This calculator provides a resource to estimate the cost saving and greenhouse gas (GHG) emission reduction potential of purchasing an electric vehicle (EV)
A8: in place of a traditional internal combustion engine (ICE) vehicle within the Province of Alberta. The calculator's financial analysis includes estimated values for
A9: incentives available through the | D9: Electric Vehicles for Municipalities (EVM) program. | K9: Other rebates may be entered into the "Additional Rebates" field such as
A10: the Government of Canada's Zero-emission Vehicle Incentive Program.
A12: Instructions for Use
A14: In the "Calculator" tab, please enter information about your vehicle usage into all green entry fields at the top and then select your vehicle preferences.
A15: The vehicle stats will populate automatically. Once complete, click the "Click Here to Compute the Savings" button (top right-hand corner) to compute a cost and
A16: GHG comparision of the vehicles. Review your results below.
A18: If your desired ICE vehicle is not found in the list, use the "Other Vehicle" option at the bottom of the list and enter the vehicle information in the green entry fields below.
A19: Click the "Reset" button to start over.
A21: Important Notes and Assumptions
A23: This calculator is designed with Alberta's electrical infrastructure in mind with a grid factor of 0.57 tCO2e/MWh. This factor applies to emissions associated with
A24: charging an EV. All vehicles listed in the calculator (both EV and ICE) are 2022 models unless otherwise stated. New vehicle models will be added periodically as they
A25: become available for purchase. It should be noted that all costs and GHG emissions presented in the calculator are best guess, high-level, conservative estimates based
A26: on limited usage information. Results may vary depending on user operation of the vehicle, distance travelled, frequency of use, the rebates available at the time of
A27: purchase,and changes to electricity and gas prices over time. The fuel costs and GHG emissions for Plug-in Hybrid Electric Vehicles (PHEVs) are calculated based on
A28: utility factors and vehicle data from Natural Resoures Canada (NRCan). These values are highly conservative and may vary significantly depending on user behaviour,
A29: frequency of use, and distance travelled. All ICE Vehicles in this calculator are gasoline-powered.
A30: For more information about electric vehicles, see | G30: the Electric Vehicle Knowledge Guide.
A32: Sources of Information
A34: Data regarding vehicle efficiency (both kWh/100km and L/100km), EV range, annual fuel costs, and other vehicle specification data was compiled from
A35: NRCan's 2022 Fuel Consumption Guide.
A36: Maintenance cost data (as well as the vehicle pictures) were gathered using the | J36: Edmunds.com Cost of Ownership Calculator | O36: and averaged on a per year basis.
A37: Where vehicle data was not available, maintenance costs were estimated using $0.031/mile for Battery Electric Vehicles (BEVs), $0.030/mile for Plug-in Hybrid Electric
A38: Vehicles (PHEVs), $0.061/mile for all ICE vehicles.
A39: (Source: Evs Ownership Costs - 2020 Consumer Report)
A41: Disclaimer
A43: This savings calculator is purely a guide and not a guarantee of actual savings. Savings will vary with the use of each vehicle. The Municipal Climate Change Action and Alberta
A44: Municipalities have no claims towards the accuracy of the results of this tool. Actual GHG emission and fuel cost savings will vary depending on factors
A45: such as road and weather conditions, driving behaviours, use of regenerative braking, charging multiple times per day, vehicle maintenance, and lithium-ion battery age.
A47: About the Municipal Climate Change Action Centre
A49: Since 2009, the Municipal Climate Change Action Centre has been empowering Alberta’s municipalities to be leaders in climate change action through energy efficiency
A50: and renewable energy projects. The Municipal Climate Change Action Centre provides funding, technical assistance, and education to help Alberta municipalities reduce
A51: GHG emissions through energy efficiency and renewable energy solutions. All Alberta municipalities are inspired to take action to reduce greenhouse gas emissions
A52: and build climate resilient communities. | F52: Visit our website for more information.

Sheet Calculator
A2: STEP 1. Enter Usage Data:
A3: Annual Distance Driven (km): | B3: 20000 | C3: km per year
A4: Approx. # of Km Driven in Gas-Mode (for PHEVs only): | B4: 8400 | C4: km per year
A5: Price of Fuel: | B5: 1.5 | C5: per Litre
A6: Electricity Rate: | B6: 0.15 | C6: per kWh
A7: Lifetime Use of New Vehicle: | B7: 10 | C7: years
A8: Additional Rebate Value: | B8: 0
B10: Electric Vehicle | E10: Internal Combustion Engine Vehicle
A12: STEP 2. Choose Your Electric Vehicle: | B12: <SELECT THIS CELL AND THEN CHOOSE VEHICLE FROM DROPDOWN LIST> | D12: STEP 3. Choose Your ICE Vehicle: | E12: <SELECT THIS CELL AND THEN CHOOSE VEHICLE FROM DROPDOWN LIST>
A14: Type of Vehicle: | B14: =VLOOKUP(B12, Data!$A$2:$I$37,2,FALSE) ->  | D14: Type of Vehicle: | E14: =VLOOKUP(E12, Data!$P$2:$T$72,2,FALSE) -> 
A15: Purchase Price: | B15: =VLOOKUP(B12, Data!$A$2:$I$37,3,FALSE) ->  | D15: Purchase Price: | E15: =VLOOKUP(E12, Data!$P$2:$T$72,3,FALSE) -> 
A16: Electricity Consumption: | B16: =VLOOKUP(B12, Data!$A$2:$I$37,4,FALSE) ->  | C16: kWh per 100 km | D16: Gas Consumption: | E16: =VLOOKUP(E12, Data!$P$2:$T$72,4,FALSE) ->  | F16: L per 100 km (combined City and Hwy)
A17: Gas Consumption: | B17: =VLOOKUP(B12, Data!$A$2:$I$37,7,FALSE) ->  | C17: L per 100 km (PHEVs only)
A18: EVM Rebate: | B18: =VLOOKUP(B12, Data!$A$2:$I$37,8,FALSE) ->  | D18: Other Vehicle:
A19: Electric Range: | B19: =VLOOKUP(B12, Data!$A$2:$I$37,9,FALSE) ->  | C19: km | D19: Purchase Price:
A20: Battery Capacity | B20: =VLOOKUP(B12, Data!$A$2:$I$37,5,FALSE) ->  | C20: kWh | D20: Litres Consumed per 100 km: | F20: L per 100 km (combined City and Hwy)
A22: Review Your Results: | B22: Fuel Costs/year ($CAD) | C22: Maintenace Costs/year ($CAD) | D22: GHG Emissions (tCO2e/year) | E22: Purchase Price After Rebates ($CAD)
A23: Electric Vehicle | B23: 0 | C23: 0 | D23: 0 | E23: 0 | K23: <CHOOSE FROM LIST>
A24: Internal Combustion Engine Vehicle | B24: 0 | C24: 0 | D24: 0 | E24: 0 | K24: <CHOOSE FROM LIST>
E25: 0 | F25: <--Difference in Purchase Prices | K25: 0
K26: FALSE
A37: Savings/Year: | B37: Fuel Costs/year ($CAD) | C37: Maintenace Costs/year ($CAD) | D37: GHG Emissions (tCO2e/year)
B38: 0 | C38: 0 | D38: 0
A40: Lifetime Savings: | B40: Fuel Costs ($CAD) | C40: Maintenace Costs ($CAD) | D40: GHG Emissions (tCO2e)
B41: 0 | C41: 0 | D41: 0 | E41: (Click here to discover what this GHG value means in everyday terms)
A43: Total Lifetime Fuel and Maintenance Savings: | B43: 0
A44: Total Lifetime Savings (including Purchase Prices): | B44: 0

Sheet Ineligible Vehicles for EVM
A1: The following vehicle makes are ineligible for EVM program rebates and do not appear in the calculator list:
A3: Acura
A4: Alfa Romeo
A5: Aston Martin
A6: Audi
A7: Bentley
A8: BMW
A9: Bugatti
A10: Buick
A11: Cadillac
A12: Fiat
A13: Genesis
A14: Infiniti
A15: Jaguar
A16: Lamborghini
A17: Land Rover
A18: Lexus
A19: Lincoln
A20: Maserati
A21: Mercedes-Benz
A22: Porsche
A23: Rolls-Royce
A24: Tesla
A25: Volvo

Sheet Data (hidden)
A1: Electric Vehicles | B1: Type | C1: Purchase Price | D1: kWh/100km | E1: Battery Capacity (kWh) | F1: CO2 (g/km) | G1: L/100km | H1: EVM Rebate | I1: Electric Range (km) | J1: Annual Maintenance Costs | K1: PHEV Annual GHGs (tCO2e) | L1: PHEV Annual Fuel Costs | M1: Pictures | P1: ICE Vehicles | Q1: Type | R1: Purchase Price | S1: L/100km | T1: CO2 (g/km) | U1: Annual Maintenance Costs | V1: Pictures
A2: <CHOOSE FROM LIST> | B2: -- | C2: -- | D2: -- | E2: -- | F2: -- | G2: -- | H2: -- | I2: -- | N2: =A2 -> <CHOOSE FROM LIST> | P2: <CHOOSE FROM LIST> | Q2: -- | R2: -- | S2: -- | T2: -- | W2: <CHOOSE FROM LIST>
A3: CHEVROLET VOLT (2019) | B3: PHEV | C3: 41381 | D3: 19.9 | E3: 18.4 | F3: 32 | G3: 5.6 | H3: =IF(E3<15,7000,14000) -> 14000 | I3: 85 | J3: =0.03*Calculator!$B$3*1.27 -> 762 | K3: =PHEV_Calcs!M12 -> 2.28507664 | L3: =PHEV_Calcs!N12 -> 655 | N3: CHEVROLET VOLT (2019) | P3: CHEVROLET COLORADO | Q3: Pickup Truck | R3: 27948 | S3: 10.9 | T3: 257 | U3: =0.061*1.27*Calculator!$B$3 -> 1549.4 | W3: =P3 -> CHEVROLET COLORADO
A4: CHRYSLER PACIFICA HYBRID | B4: PHEV | C4: 50234 | D4: 25.8 | E4: 16 | F4: 74 | G4: 8 | H4: =IF(E4<15,7000,14000) -> 14000 | I4: 51 | J4: =0.03*Calculator!$B$3*1.27 -> 762 | K4: =PHEV_Calcs!M13 -> 3.08659584 | L4: =PHEV_Calcs!N13 -> 1094 | N4: CHRYSLER PACIFICA HYBRID | P4: CHEVROLET CRUZE (2019) | Q4: Compact Sedan | R4: 21000 | S4: 7.3 | T4: 172 | U4: =0.061*1.27*Calculator!$B$3 -> 1549.4 | W4: =P4 -> CHEVROLET CRUZE (2019)
A5: FORD ESCAPE PLUG-IN | B5: PHEV | C5: 41199 | D5: 20.2 | E5: 14.4 | F5: 48 | G5: 5.8 | H5: 7000 | I5: 60 | J5: =0.03*Calculator!$B$3*1.27 -> 762 | K5: =PHEV_Calcs!M14 -> 2.36367884 | L5: =PHEV_Calcs!N14 -> 795 | N5: FORD ESCAPE PLUG-IN | P5: CHEVROLET EQUINOX | Q5: Sport Utility Vehicle | R5: 27198 | S5: 8.4 | T5: 198 | U5: =0.061*1.27*Calculator!$B$3 -> 1549.4 | W5: CHEVROLET EQUINOX
A6: FORD FUSION PHEV (2020) | B6: PHEV | C6: 50692 | D6: 20.5 | E6: 9 | F6: 61 | G6: 5.6 | H6: 7000 | I6: 42 | J6: =0.03*Calculator!$B$3*1.27 -> 762 | K6: =PHEV_Calcs!M15 -> 2.4137429 | L6: =PHEV_Calcs!N15 -> 957 | N6: FORD FUSION PHEV (2020) | P6: CHEVROLET IMPALA (2020) | Q6: Full Size Sedan | R6: 35914 | S6: 10.9 | T6: 255 | U6: =0.061*1.27*Calculator!$B$3 -> 1549.4 | W6: CHEVROLET IMPALA (2020)
A7: HONDA CLARITY PLUG-IN (2021) | B7: PHEV | C7: 44505 | D7: 19 | E7: 17 | F7: 36 | G7: 5.6 | H7: 14000 | I7: 77 | J7: =0.03*Calculator!$B$3*1.27 -> 762 | K7: =PHEV_Calcs!M16 -> 2.231026 | L7: =PHEV_Calcs!N16 -> 746 | N7: HONDA CLARITY PLUG-IN (2021) | P7: CHEVROLET MALIBU | Q7: Mid-Size Sedan | R7: 25248 | S7: 7.5 | T7: 175 | U7: =0.061*1.27*Calculator!$B$3 -> 1549.4 | W7: CHEVROLET MALIBU
A8: HYUNDAI IONIQ PLUG-IN | B8: PHEV | C8: 44999 | D8: 17.4 | E8: 8.9 | F8: 46 | G8: 4.5 | H8: 7000 | I8: 47 | J8: =0.03*Calculator!$B$3*1.27 -> 762 | K8: =PHEV_Calcs!M17 -> 2.00050848 | L8: =PHEV_Calcs!N17 -> 684 | N8: HYUNDAI IONIQ PLUG-IN | P8: CHEVROLET SILVERADO | Q8: Pickup Truck | R8: 30998 | S8: 13.8 | T8: 325 | U8: =0.061*1.27*Calculator!$B$3 -> 1549.4 | W8: CHEVROLET SILVERADO
A9: HYUNDAI SONATA PLUG-IN (2019) | B9: PHEV | C9: 43600 | D9: 20.9 | E9: 9.8 | F9: 62 | G9: 6 | H9: 7000 | I9: 45 | J9: =0.03*Calculator!$B$3*1.27 -> 762 | K9: =PHEV_Calcs!M18 -> 2.44985268 | L9: =PHEV_Calcs!N18 -> 836 | N9: HYUNDAI SONATA PLUG-IN (2019) | P9: CHEVROLET SPARK | Q9: Sub-Compact Sedan | R9: 9998 | S9: 7 | T9: 165 | U9: =0.061*1.27*Calculator!$B$3 -> 1549.4 | W9: CHEVROLET SPARK
A10: HYUNDAI SANTA FE PLUG-IN | B10: PHEV | C10: 36353.7 | D10: 27.5 | E10: 13.8 | F10: 69 | G10: 7.2 | H10: =IF(E10<15,7000,14000) -> 7000 | I10: 50 | J10: =0.03*Calculator!$B$3*1.27 -> 762 | K10: =PHEV_Calcs!M19 -> 3.1689486 | L10: =PHEV_Calcs!N19 -> 1081 | N10: HYUNDAI SANTA FE PLUG-IN | P10: CHEVROLET SUBURBAN | Q10: Sport Utility Vehicle | R10: 59398 | S10: 13.2 | T10: 309 | U10: =0.061*1.27*Calculator!$B$3 -> 1549.4 | W10: =P10 -> CHEVROLET SUBURBAN
A11: HYUNDAI TUCSON PLUG-IN | B11: PHEV | C11: 41051 | D11: 25.9 | E11: 13.8 | F11: 62 | G11: 6.7 | H11: 7000 | I11: 53 | J11: =0.03*Calculator!$B$3*1.27 -> 762 | K11: =PHEV_Calcs!M20 -> 2.9753744 | L11: =PHEV_Calcs!N20 -> 994 | N11: HYUNDAI TUCSON PLUG-IN | P11: CHEVROLET TAHOE | Q11: Sport Utility Vehicle | R11: 56398 | S11: 13.2 | T11: 309 | U11: =0.061*1.27*Calculator!$B$3 -> 1549.4 | W11: CHEVROLET TAHOE
A12: GRAND CHEROKEE 4XE | B12: PHEV | C12: 75195 | D12: 36 | E12: 17 | F12: 110 | G12: 10 | H12: 14000 | I12: 42 | J12: =0.03*Calculator!$B$3*1.27 -> 762 | K12: =PHEV_Calcs!M21 -> 4.2166416 | L12: =PHEV_Calcs!N21 -> 1516 | N12: GRAND CHEROKEE 4XE
A13: WRANGLER 4XE | B13: PHEV | C13: 55114 | D13: 42.2 | E13: 17 | F13: 143 | G13: 11.7 | H13: 14000 | I13: 35 | J13: =0.03*Calculator!$B$3*1.27 -> 762 | K13: =PHEV_Calcs!M22 -> 4.95028704 | L13: =PHEV_Calcs!N22 -> 1814 | N13: WRANGLER 4XE
A14: KIA NIRO PLUG-IN | B14: PHEV | C14: 34595 | D14: 19.7 | E14: 8.9 | F14: 56 | G14: 5.1 | H14: 7000 | I14: 42 | J14: =0.03*Calculator!$B$3*1.27 -> 762 | K14: =PHEV_Calcs!M23 -> 2.2662909 | L14: =PHEV_Calcs!N23 -> 783 | N14: KIA NIRO PLUG-IN | P14: CHRYSLER PACIFICA | Q14: Minivan | R14: 34560 | S14: 10.6 | T14: 249 | U14: =0.061*1.27*Calculator!$B$3 -> 1549.4 | W14: CHRYSLER PACIFICA
A15: KIA OPTIMA PLUG-IN (2020) | B15: PHEV | C15: 43995 | D15: 20.7 | E15: 9.8 | F15: 60 | G15: 5.7 | H15: 7000 | I15: 45 | J15: =0.03*Calculator!$B$3*1.27 -> 762 | K15: =PHEV_Calcs!M24 -> 2.43830268 | L15: =PHEV_Calcs!N24 -> 947 | N15: KIA OPTIMA PLUG-IN (2020) | P15: CHRYSLER GRAND CARAVAN | Q15: Minivan | R15: 36339 | S15: 10.6 | T15: 249 | U15: =0.061*1.27*Calculator!$B$3 -> 1549.4 | W15: CHRYSLER GRAND CARAVAN
A16: KIA SORENTO PLUG-IN | B16: PHEV | C16: 46405 | D16: 26.4 | E16: 14 | F16: 65 | G16: 6.9 | H16: 7000 | I16: 51 | J16: =0.03*Calculator!$B$3*1.27 -> 762 | K16: =PHEV_Calcs!M25 -> 3.03879744 | L16: =PHEV_Calcs!N25 -> 1019 | N16: KIA SORENTO PLUG-IN | P16: FORD ESCAPE | Q16: Sport Utility Vehicle | R16: 27799 | S16: 9.1 | T16: 213 | U16: =0.061*1.27*Calculator!$B$3 -> 1549.4 | W16: FORD ESCAPE
A17: MINI COOPER SE COUNTRYMAN ALL4 | B17: PHEV | C17: 44590 | D17: 28.4 | E17: 8 | F17: 109 | G17: 8 | H17: 7000 | I17: 29 | J17: =0.03*Calculator!$B$3*1.27 -> 762 | K17: =PHEV_Calcs!M26 -> 3.38478648 | L17: =PHEV_Calcs!N26 -> 1367 | N17: MINI COOPER SE COUNTRYMAN ALL4 | P17: FORD F-150 | Q17: Pickup Truck | R17: 33429 | S17: 11.7 | T17: 274 | U17: =0.061*1.27*Calculator!$B$3 -> 1549.4 | W17: FORD F-150
A18: MITSUBISHI OUTLANDER (PHEV) | B18: PHEV | C18: 44198 | D18: 28.2 | E18: 13.8 | F18: 103 | G18: 9.1 | H18: 7000 | I18: 39 | J18: =0.03*Calculator!$B$3*1.27 -> 762 | K18: =PHEV_Calcs!M27 -> 3.4576 | L18: =PHEV_Calcs!N27 -> 1318 | N18: MITSUBISHI OUTLANDER (PHEV) | P18: FORD FIESTA (2019) | Q18: Sub-Compact Sedan | R18: 15800 | S18: 7.6 | T18: 178 | U18: =0.061*1.27*Calculator!$B$3 -> 1549.4 | W18: FORD FIESTA (2019)
A19: SUBARU CROSSTREK HYBRID | B19: PHEV | C19: 42595 | D19: 23.5 | E19: 8.8 | F19: 94 | G19: 6.7 | H19: 7000 | I19: 27 | J19: =0.03*Calculator!$B$3*1.27 -> 762 | K19: =PHEV_Calcs!M28 -> 2.7932505 | L19: =PHEV_Calcs!N28 -> 1075 | N19: SUBARU CROSSTREK HYBRID | P19: FORD FLEX (2020) | Q19: Sport Utility Vehicle | R19: 29649 | S19: 12.7 | T19: 298 | U19: =0.061*1.27*Calculator!$B$3 -> 1549.4 | W19: FORD FLEX (2020)
A20: TOYOTA PRIUS PRIME | B20: PHEV | C20: 33550 | D20: 15.8 | E20: 8.8 | F20: 49 | G20: 4.3 | H20: 7000 | I20: 40 | J20: =0.03*Calculator!$B$3*1.27 -> 762 | K20: =PHEV_Calcs!M29 -> 1.84149272 | L20: =PHEV_Calcs!N29 -> 660 | N20: TOYOTA PRIUS PRIME | P20: FORD FUSION (2020) | Q20: Mid-Size Sedan | R20: 28789 | S20: 8.7 | T20: 203 | U20: =0.061*1.27*Calculator!$B$3 -> 1549.4 | W20: FORD FUSION (2020)
A21: TOYOTA RAV4 PRIME | B21: PHEV | C21: 44990 | D21: 22.3 | E21: 18.1 | F21: 44 | G21: 6 | H21: =IF(E21<15,7000,14000) -> 14000 | I21: 68 | J21: =0.03*Calculator!$B$3*1.27 -> 762 | K21: =PHEV_Calcs!M30 -> 2.573781 | L21: =PHEV_Calcs!N30 -> 833 | N21: TOYOTA RAV4 PRIME
P22: FORD FUSION HYBRID (2020) | Q22: Mid-Size Sedan | R22: 29400 | S22: 5.6 | T22: 131 | U22: =0.061*1.27*Calculator!$B$3 -> 1549.4 | W22: =P22 -> FORD FUSION HYBRID (2020)
A23: CHEVROLET BOLT EV | B23: BEV | C23: 38198 | D23: 17.5 | E23: 66 | F23: 0 | G23: 0 | H23: =IF(E23<15,7000,14000) -> 14000 | I23: 417 | J23: =0.031*Calculator!$B$3*1.27 -> 787.4 | N23: =A23 -> CHEVROLET BOLT EV | P23: FORD TRANSIT CONNECT | Q23: Special Purpose Van | R23: 30835 | S23: 9.3 | T23: 217 | U23: =0.061*1.27*Calculator!$B$3 -> 1549.4 | W23: FORD TRANSIT CONNECT
A24: CHEVROLET BOLT EUV | B24: BEV | C24: 40198 | D24: 18.3 | E24: 65 | F24: 0 | G24: 0 | H24: =IF(E24<15,7000,14000) -> 14000 | I24: 397 | J24: =0.031*Calculator!$B$3*1.27 -> 787.4 | N24: CHEVROLET BOLT EUV | P24: GMC CANYON | Q24: Pickup Truck | R24: 28648 | S24: 10.8 | T24: 271 | U24: =0.061*1.27*Calculator!$B$3 -> 1549.4 | W24: GMC CANYON
A25: F-150 LIGHTING STANDARD RANGE | B25: BEV | C25: 68000 | D25: 30.6 | E25: 98 | F25: 0 | G25: 0 | H25: =IF(E25<15,7000,14000) -> 14000 | I25: 370 | J25: =0.031*Calculator!$B$3*1.27 -> 787.4 | N25: F-150 LIGHTING STANDARD RANGE | P25: GMC SIERRA | Q25: Pickup Truck | R25: 32498 | S25: 13.8 | T25: 325 | U25: =0.061*1.27*Calculator!$B$3 -> 1549.4 | W25: =P25 -> GMC SIERRA
A26: HONDA CLARITY (2019) | B26: BEV | C26: 42771 | D26: 18.5 | E26: 25.5 | F26: 0 | G26: 0 | H26: =IF(E26<15,7000,14000) -> 14000 | I26: 143 | J26: =0.031*Calculator!$B$3*1.27 -> 787.4 | N26: HONDA CLARITY (2019) | P26: GMC YUKON | Q26: Sport Utility Vehicle | R26: 58548 | S26: 13.2 | T26: 309 | U26: =0.061*1.27*Calculator!$B$3 -> 1549.4 | W26: GMC YUKON
A27: HYUNDAI IONIQ ELECTRIC | B27: BEV | C27: 41599 | D27: 15.8 | E27: 38.3 | F27: 0 | G27: 0 | H27: 14000 | I27: 354 | J27: =0.031*Calculator!$B$3*1.27 -> 787.4 | N27: HYUNDAI IONIQ ELECTRIC | P27: HONDA ACCORD | Q27: Full Size Sedan | R27: 34685 | S27: 7.2 | T27: 168 | U27: =0.061*1.27*Calculator!$B$3 -> 1549.4 | W27: HONDA ACCORD
A28: HYUNDAI KONA ELECTRIC | B28: BEV | C28: 46445 | D28: 17.4 | E28: 64 | F28: 0 | G28: 0 | H28: 14000 | I28: 415 | J28: =0.031*Calculator!$B$3*1.27 -> 787.4 | N28: HYUNDAI KONA ELECTRIC | P28: HONDA ACCORD (HYBRID) | Q28: Full Size Sedan | R28: 37920 | S28: 5 | T28: 117 | U28: =0.061*1.27*Calculator!$B$3 -> 1549.4 | W28: HONDA ACCORD (HYBRID)
A29: KIA EV6 STANDARD RANGE | B29: BEV | C29: 44995 | D29: 18 | E29: 58 | F29: 0 | G29: 0 | H29: 14000 | I29: 373 | J29: =0.031*Calculator!$B$3*1.27 -> 787.4 | N29: KIA EV6 STANDARD RANGE | P29: HONDA CR-V | Q29: Sport Utility Vehicle | R29: 32255 | S29: 7.7 | T29: 180 | U29: =0.061*1.27*Calculator!$B$3 -> 1549.4 | W29: HONDA CR-V
A30: KIA NIRO EV (2020) | B30: BEV | C30: 44995 | D30: 18.6 | E30: 64 | F30: 0 | G30: 0 | H30: 14000 | I30: 385 | J30: =0.031*Calculator!$B$3*1.27 -> 787.4 | N30: KIA NIRO EV (2020) | P30: HONDA CIVIC SEDAN | Q30: Mid-Size Sedan | R30: 25215 | S30: 7.1 | T30: 165 | U30: =0.061*1.27*Calculator!$B$3 -> 1549.4 | W30: HONDA CIVIC SEDAN
A31: KIA SOUL EV | B31: BEV | C31: 42995 | D31: 18.6 | E31: 39.2 | F31: 0 | G31: 0 | H31: 14000 | I31: 248 | J31: =0.031*Calculator!$B$3*1.27 -> 787.4 | N31: KIA SOUL EV | P31: HONDA FIT (2020) | Q31: Small Station Wagon | R31: 18075 | S31: 6.5 | T31: 151 | U31: =0.061*1.27*Calculator!$B$3 -> 1549.4 | W31: HONDA FIT (2020)
A32: MAZDA MX-30 | B32: BEV | C32: 42150 | D32: 22.8 | E32: 35.5 | F32: 0 | G32: 0 | H32: 14000 | I32: 161 | J32: =0.031*Calculator!$B$3*1.27 -> 787.4 | N32: MAZDA MX-30 | P32: HONDA HR-V | Q32: Crossover Sedan | R32: 27185 | S32: 7.8 | T32: 181 | U32: =0.061*1.27*Calculator!$B$3 -> 1549.4 | W32: HONDA HR-V
A33: NISSAN LEAF | B33: BEV | C33: 44298 | D33: 18.9 | E33: 40 | F33: 0 | G33: 0 | H33: 14000 | I33: 240 | J33: =0.031*Calculator!$B$3*1.27 -> 787.4 | N33: NISSAN LEAF | P33: HONDA ODYSSEY | Q33: Minivan | R33: 45090 | S33: 10.6 | T33: 248 | U33: =0.061*1.27*Calculator!$B$3 -> 1549.4 | W33: HONDA ODYSSEY
A34: NISSAN LEAF S PLUS | B34: BEV | C34: 40098 | D34: 19.5 | E34: 62 | F34: 0 | G34: 0 | H34: 14000 | I34: 363 | J34: =0.031*Calculator!$B$3*1.27 -> 787.4 | N34: NISSAN LEAF S PLUS | P34: HONDA RIDGELINE | Q34: Pickup Truck | R34: 46640 | S34: 11.5 | T34: 271 | U34: =0.061*1.27*Calculator!$B$3 -> 1549.4 | W34: HONDA RIDGELINE
A35: NISSAN LEAF SV/SL PLUS | B35: BEV | C35: 46098 | D35: 20 | E35: 62 | F35: 0 | G35: 0 | H35: 14000 | I35: 349 | J35: =0.031*Calculator!$B$3*1.27 -> 787.4 | N35: NISSAN LEAF SV/SL PLUS | P35: HYUNDAI ACCENT (2020) | Q35: Compact Sedan | R35: 14949 | S35: 6.7 | T35: 160 | U35: =0.061*1.27*Calculator!$B$3 -> 1549.4 | W35: HYUNDAI ACCENT (2020)
A36: VOLKSWAGEN e-GOLF (2020) | B36: BEV | C36: 37900 | D36: 18.6 | E36: 35.8 | F36: 0 | G36: 0 | H36: 14000 | I36: 198 | J36: =0.031*Calculator!$B$3*1.27 -> 787.4 | N36: VOLKSWAGEN e-GOLF (2020) | P36: HYUNDAI ELANTRA | Q36: Mid-Size Sedan | R36: 17889 | S36: 7.6 | T36: 179 | U36: =0.061*1.27*Calculator!$B$3 -> 1549.4 | W36: HYUNDAI ELANTRA
A37: VOLKSWAGEN ID.4 | B37: BEV | C37: 44995 | D37: 22 | E37: 82 | F37: 0 | G37: 0 | H37: =IF(E37<15,7000,14000) -> 14000 | I37: 394 | J37: =0.031*Calculator!$B$3*1.27 -> 787.4 | N37: VOLKSWAGEN ID.4 | P37: HYUNDAI IONIQ | Q37: Full Size Sedan | R37: 25649 | S37: 4.2 | T37: 99 | U37: =0.061*1.27*Calculator!$B$3 -> 1549.4 | W37: HYUNDAI IONIQ
P38: HYUNDAI SONATA | Q38: Full Size Sedan | R38: 27149 | S38: 7.7 | T38: 182 | U38: =0.061*1.27*Calculator!$B$3 -> 1549.4 | W38: HYUNDAI SONATA
P39: HYUNDAI SONATA HYBRID | Q39: Mid-Size Sedan | R39: 40199 | S39: 5 | T39: 117 | U39: =0.061*1.27*Calculator!$B$3 -> 1549.4 | W39: HYUNDAI SONATA HYBRID
P40: HYUNDAI VELOSTER N | Q40: Compact Sedan | R40: 37799 | S40: 10.5 | T40: 248 | U40: =0.061*1.27*Calculator!$B$3 -> 1549.4 | W40: HYUNDAI VELOSTER N
P41: HYUNDAI VENUE | R41: 25549 | S41: 7.5 | T41: 176 | U41: =0.061*1.27*Calculator!$B$3 -> 1549.4 | W41: HYUNDAI VENUE
P42: JEEP CHEROKEE | Q42: Sport Utility Vehicle | R42: 31117 | S42: 9.1 | T42: 214 | U42: =0.061*1.27*Calculator!$B$3 -> 1549.4 | W42: JEEP CHEROKEE
P43: KIA FORTE | Q43: Mid-Size Sedan | R43: 17895 | S43: 7.8 | T43: 184 | U43: =0.061*1.27*Calculator!$B$3 -> 1549.4 | W43: KIA FORTE
P44: KIA NIRO | Q44: Small Station Wagon | R44: 26845 | S44: 4.6 | T44: 110 | U44: =0.061*1.27*Calculator!$B$3 -> 1549.4 | W44: KIA NIRO
P45: KIA K5 (OPTIMA) | Q45: Full Size Sedan | R45: 29595 | S45: 8.7 | T45: 207 | U45: =0.061*1.27*Calculator!$B$3 -> 1549.4 | W45: KIA K5 (OPTIMA)
P46: KIA RIO | Q46: Compact Sedan | R46: 17295 | S46: 6.7 | T46: 159 | U46: =0.061*1.27*Calculator!$B$3 -> 1549.4 | W46: KIA RIO
P47: KIA SEDONA (2021) | Q47: Minivan | R47: 32295 | S47: 11.5 | T47: 272 | U47: =0.061*1.27*Calculator!$B$3 -> 1549.4 | W47: KIA SEDONA (2021)
P48: KIA SORENTO | Q48: Sport Utility Vehicle | R48: 33995 | S48: 9.9 | T48: 233 | U48: =0.061*1.27*Calculator!$B$3 -> 1549.4 | W48: KIA SORENTO
P49: KIA SOUL | Q49: Small Station Wagon | R49: 21195 | S49: 7.9 | T49: 187 | U49: =0.061*1.27*Calculator!$B$3 -> 1549.4 | W49: KIA SOUL
P50: MAZDA CX-3 | Q50: Compact Sedan | R50: 21450 | S50: 7.7 | T50: 179 | U50: =0.061*1.27*Calculator!$B$3 -> 1549.4 | W50: MAZDA CX-3
P51: MAZDA CX-5 | Q51: Sport Utility Vehicle | R51: 28600 | S51: 8.8 | T51: 206 | U51: =0.061*1.27*Calculator!$B$3 -> 1549.4 | W51: MAZDA CX-5
P52: MAZDA3 | Q52: Compact Sedan | R52: 20600 | S52: 7.6 | T52: 178 | U52: =0.061*1.27*Calculator!$B$3 -> 1549.4 | W52: MAZDA3
P53: MITSUBISHI MIRAGE | Q53: Compact Sedan | R53: 13858 | S53: 6.2 | T53: 143 | U53: =0.061*1.27*Calculator!$B$3 -> 1549.4 | W53: MITSUBISHI MIRAGE
P54: MITSUBISHI OUTLANDER (2020) | Q54: Sport Utility Vehicle | R54: 29998 | S54: 10.6 | T54: 246 | U54: =0.061*1.27*Calculator!$B$3 -> 1549.4 | W54: MITSUBISHI OUTLANDER (2020)
P55: MITSUBISHI RVR | Q55: Sport Utility Vehicle | R55: 23198 | S55: 8.8 | T55: 206 | U55: =0.061*1.27*Calculator!$B$3 -> 1549.4 | W55: =P55 -> MITSUBISHI RVR
P56: NISSAN ALTIMA | Q56: Mid-Size Sedan | R56: 29498 | S56: 7.9 | T56: 187 | U56: =0.061*1.27*Calculator!$B$3 -> 1549.4 | W56: =P56 -> NISSAN ALTIMA
P57: NISSAN MAXIMA | Q57: Mid-Size Sedan | R57: 41440 | S57: 9.9 | T57: 233 | U57: =0.061*1.27*Calculator!$B$3 -> 1549.4 | W57: NISSAN MAXIMA
P58: NISSAN PATHFINDER (2020) | Q58: Sport Utility Vehicle | R58: 36698 | S58: 10.2 | T58: 240 | U58: =0.061*1.27*Calculator!$B$3 -> 1549.4 | W58: NISSAN PATHFINDER (2020)
P59: NISSAN ROGUE | Q59: Sport Utility Vehicle | R59: 28798 | S59: 8.1 | T59: 189 | U59: =0.061*1.27*Calculator!$B$3 -> 1549.4 | W59: NISSAN ROGUE
P60: NISSAN SENTRA | Q60: Mid-Size Sedan | R60: 19198 | S60: 7.1 | T60: 167 | U60: =0.061*1.27*Calculator!$B$3 -> 1549.4 | W60: NISSAN SENTRA
P61: TOYOTA 4RUNNER | Q61: Sport Utility Vehicle | R61: 46200 | S61: 13.8 | T61: 321 | U61: =0.061*1.27*Calculator!$B$3 -> 1549.4 | W61: TOYOTA 4RUNNER
P62: TOYOTA CAMRY | Q62: Mid-Size Sedan | R62: 27250 | S62: 9 | T62: 210 | U62: =0.061*1.27*Calculator!$B$3 -> 1549.4 | W62: TOYOTA CAMRY
P63: TOYOTA COROLLA | Q63: Mid-Size Sedan | R63: 19350 | S63: 7.1 | T63: 165 | U63: =0.061*1.27*Calculator!$B$3 -> 1549.4 | W63: TOYOTA COROLLA
P64: TOYOTA HIGHLANDER | Q64: Sport Utility Vehicle | R64: 40450 | S64: 10.3 | T64: 240 | U64: =0.061*1.27*Calculator!$B$3 -> 1549.4 | W64: TOYOTA HIGHLANDER
P65: TOYOTA PRIUS | Q65: Mid-Size Sedan | R65: 28850 | S65: 4.5 | T65: 106 | U65: =0.061*1.27*Calculator!$B$3 -> 1549.4 | W65: TOYOTA PRIUS
P66: TOYOTA RAV4 | Q66: Sport Utility Vehicle | R66: 28590 | S66: 7.9 | T66: 184 | U66: =0.061*1.27*Calculator!$B$3 -> 1549.4 | W66: TOYOTA RAV4
P67: TOYOTA SIENNA | Q67: Minivan | R67: 39990 | S67: 6.5 | T67: 153 | U67: =0.061*1.27*Calculator!$B$3 -> 1549.4 | W67: TOYOTA SIENNA
P68: TOYOTA TUNDRA | Q68: Pickup Truck | R68: 47010 | S68: 15.9 | T68: 371 | U68: =0.061*1.27*Calculator!$B$3 -> 1549.4 | W68: TOYOTA TUNDRA
P69: VOLKSWAGEN GOLF | Q69: Compact Sedan | R69: 22995 | S69: 7.5 | T69: 174 | U69: =0.061*1.27*Calculator!$B$3 -> 1549.4 | W69: =P69 -> VOLKSWAGEN GOLF
P70: VOLKSWAGEN JETTA | Q70: Compact Sedan | R70: 21595 | S70: 7.1 | T70: 165 | U70: =0.061*1.27*Calculator!$B$3 -> 1549.4 | W70: =P70 -> VOLKSWAGEN JETTA
P71: VOLKSWAGEN PASSAT | Q71: Mid-Size Sedan | R71: 27145 | S71: 8.3 | T71: 195 | U71: =0.061*1.27*Calculator!$B$3 -> 1549.4 | W71: =P71 -> VOLKSWAGEN PASSAT
P72: --OTHER VEHICLE (fill out info below)-- | Q72: - | R72: - | S72: - | T72: - | U72: =0.061*1.27*Calculator!$B$3 -> 1549.4 | W72: =P72 -> --OTHER VEHICLE (fill out info below)--

Sheet Results (hidden)
K1: Chart Preparation - Cost Analysis
B2: Results: | F2: Results: | L2: Year
B3: GHG Emissions: | C3: =IFERROR(IF(Calculator!B14 = "PHEV",VLOOKUP(Calculator!B12, Data!$A$2:$L$100,11,FALSE),(Calculator!B3*(Calculator!B16/100) * 0.00057)),0) -> 0 | D3: tCO2e per year | F3: GHG Emissions: | G3: =IFERROR(IF(Calculator!$E$12 = "--OTHER VEHICLE (fill out info below)--",Calculator!B3 * (Calculator!E20/100) * 0.0023,Calculator!B3 * (Calculator!E16/100) * 0.0023),0) -> 0 | H3: tCO2e per year | K3: From: | L3: 1 | M3: =INDEX($A$28:$A$57,MATCH($L$3,$A$28:$A$57,0)):INDEX($A$28:$A$57,MATCH(Calculator!$B$7,$A$28:$A$57,0)) -> 
B4: Cost to refuel: | C4: =IFERROR(IF(Calculator!B14="PHEV",VLOOKUP(Calculator!B12, Data!$A$2:$L$100,12,FALSE),(Calculator!B6*(Calculator!B16/100) *Calculator!B3)),0) -> 0 | D4: per year | F4: Cost to refuel: | G4: =IFERROR(IF(Calculator!$E$12 = "--OTHER VEHICLE (fill out info below)--", Calculator!B5 * (Calculator!E20/100) * Calculator!B3,Calculator!B5 * (Calculator!E16/100) * Calculator!B3),0) -> 0 | H4: per year | K4: To: | M4: =INDEX($B$28:$B$57,MATCH($L$3,$A$28:$A$57,0)):INDEX($B$28:$B$57,MATCH(Calculator!$B$7,$A$28:$A$57,0)) ->  | N4: =INDEX($C$28:$C$57,MATCH($L$3,$A$28:$A$57,0)):INDEX($C$28:$C$57,MATCH(Calculator!$B$7,$A$28:$A$57,0)) -> 
B5: Maintenance Costs: | C5: =IFERROR(VLOOKUP(Calculator!B12, Data!$A$2:$L$100,10,FALSE),0) -> 0 | D5: per year | F5: Maintenance Costs: | G5: =IFERROR(VLOOKUP(Calculator!E12, Data!$P$2:$U$100,6,FALSE),0) -> 0 | H5: per year | M5: =INDEX($D$28:$D$57,MATCH($L$3,$A$28:$A$57,0)):INDEX($D$28:$D$57,MATCH(Calculator!$B$7,$A$28:$A$57,0)) ->  | N5: =INDEX($E$28:$E$57,MATCH($L$3,$A$28:$A$57,0)):INDEX($E$28:$E$57,MATCH(Calculator!$B$7,$A$28:$A$57,0)) -> 
F6: Purchase Price: | G6: =IFERROR(IF(Calculator!$E$12 = "--OTHER VEHICLE (fill out info below)--",Calculator!E19,Calculator!E15),0) -> 0
D7: Overall Fuel Cost Savings: | E7: =G4-C4 -> 0 | F7: per year
K8: EV: | L8: =Calculator!$B$12 -> <SELECT THIS CELL AND THEN CHOOSE VEHICLE FROM DROPDOWN LIST>
D9: GHG Savings: | E9: =G3 - C3 -> 0 | F9: tCO2e per year | K9: ICEV: | L9: =IF(Calculator!E12 = "--OTHER VEHICLE (fill out info below)--", Calculator!E18,Calculator!E12) -> <SELECT THIS CELL AND THEN CHOOSE VEHICLE FROM DROPDOWN LIST>
D11: Maintenance Savings: | E11: =IFERROR(G5 - C5,0) -> 0 | F11: per year
D13: Purchase Price for EV: | E13: =IFERROR(Calculator!B15,0) -> 0
D14: Purchase Price After All Rebates: | E14: =IFERROR(IF(Calculator!K26 = TRUE, E13 - Calculator!B8,E13 - Calculator!B18 - Calculator!B8),0) -> 0
D15: Capital Cost Difference Between EV and ICEV: | E15: =IFERROR(G6 - E14,0) -> 0
D17: Total Lifetime Fuel Cost Savings: | E17: =E7 * Calculator!$B$7 -> 0
D18: Total Lifetime GHG Savings: | E18: =E9*Calculator!$B$7 -> 0 | F18: tCO2e
D19: Total Lifetime Maintenance Savings: | E19: =E11*Calculator!$B$7 -> 0
D21: Total Lifetime Fuel and Maintenance Cost Savings: | E21: =SUM(E17:E19) -> 0
D22: Total Lifetime Cost Savings (inculding Capital Cost Difference): | E22: =SUM(E17:E19) + E15 -> 0
B25: Lifetime Use of New Vehicle: | C25: =Calculator!$B$7 -> 10
A27: Year | B27: EV Lifetime Costs | C27: ICE Vehicle Lifetime Costs | D27: EV GHG Lifetime Emissions | E27: ICE GHG Lifetime Emissions
A28: 1 | B28: =Calculator!$E$23 + Calculator!$B$23 + Calculator!$C$23 -> 0 | C28: =Calculator!$E$24 + Calculator!$B$24 + Calculator!$C$24 -> 0 | D28: =Calculator!$D$23 -> 0 | E28: =Calculator!$D$24 -> 0
A29: 2 | B29: =B28 + Calculator!$B$23 + Calculator!$C$23 -> 0 | C29: =C28 + Calculator!$B$24 + Calculator!$C$24 -> 0 | D29: =D28+ Calculator!$D$23 -> 0 | E29: =E28 + Calculator!$D$24 -> 0
A30: 3 | B30: =B29 + Calculator!$B$23 + Calculator!$C$23 -> 0 | C30: =C29 + Calculator!$B$24 + Calculator!$C$24 -> 0 | D30: =D29+ Calculator!$D$23 -> 0 | E30: =E29 + Calculator!$D$24 -> 0
A31: 4 | B31: =B30 + Calculator!$B$23 + Calculator!$C$23 -> 0 | C31: =C30 + Calculator!$B$24 + Calculator!$C$24 -> 0 | D31: =D30+ Calculator!$D$23 -> 0 | E31: =E30 + Calculator!$D$24 -> 0
A32: 5 | B32: =B31 + Calculator!$B$23 + Calculator!$C$23 -> 0 | C32: =C31 + Calculator!$B$24 + Calculator!$C$24 -> 0 | D32: =D31+ Calculator!$D$23 -> 0 | E32: =E31 + Calculator!$D$24 -> 0
A33: 6 | B33: =B32 + Calculator!$B$23 + Calculator!$C$23 -> 0 | C33: =C32 + Calculator!$B$24 + Calculator!$C$24 -> 0 | D33: =D32+ Calculator!$D$23 -> 0 | E33: =E32 + Calculator!$D$24 -> 0
A34: 7 | B34: =B33 + Calculator!$B$23 + Calculator!$C$23 -> 0 | C34: =C33 + Calculator!$B$24 + Calculator!$C$24 -> 0 | D34: =D33+ Calculator!$D$23 -> 0 | E34: =E33 + Calculator!$D$24 -> 0
A35: 8 | B35: =B34 + Calculator!$B$23 + Calculator!$C$23 -> 0 | C35: =C34 + Calculator!$B$24 + Calculator!$C$24 -> 0 | D35: =D34+ Calculator!$D$23 -> 0 | E35: =E34 + Calculator!$D$24 -> 0
A36: 9 | B36: =B35 + Calculator!$B$23 + Calculator!$C$23 -> 0 | C36: =C35 + Calculator!$B$24 + Calculator!$C$24 -> 0 | D36: =D35+ Calculator!$D$23 -> 0 | E36: =E35 + Calculator!$D$24 -> 0
A37: 10 | B37: =B36 + Calculator!$B$23 + Calculator!$C$23 -> 0 | C37: =C36 + Calculator!$B$24 + Calculator!$C$24 -> 0 | D37: =D36+ Calculator!$D$23 -> 0 | E37: =E36 + Calculator!$D$24 -> 0
A38: 11 | B38: =B37 + Calculator!$B$23 + Calculator!$C$23 -> 0 | C38: =C37 + Calculator!$B$24 + Calculator!$C$24 -> 0 | D38: =D37+ Calculator!$D$23 -> 0 | E38: =E37 + Calculator!$D$24 -> 0
A39: 12 | B39: =B38 + Calculator!$B$23 + Calculator!$C$23 -> 0 | C39: =C38 + Calculator!$B$24 + Calculator!$C$24 -> 0 | D39: =D38+ Calculator!$D$23 -> 0 | E39: =E38 + Calculator!$D$24 -> 0
A40: 13 | B40: =B39 + Calculator!$B$23 + Calculator!$C$23 -> 0 | C40: =C39 + Calculator!$B$24 + Calculator!$C$24 -> 0 | D40: =D39+ Calculator!$D$23 -> 0 | E40: =E39 + Calculator!$D$24 -> 0
A41: 14 | B41: =B40 + Calculator!$B$23 + Calculator!$C$23 -> 0 | C41: =C40 + Calculator!$B$24 + Calculator!$C$24 -> 0 | D41: =D40+ Calculator!$D$23 -> 0 | E41: =E40 + Calculator!$D$24 -> 0
A42: 15 | B42: =B41 + Calculator!$B$23 + Calculator!$C$23 -> 0 | C42: =C41 + Calculator!$B$24 + Calculator!$C$24 -> 0 | D42: =D41+ Calculator!$D$23 -> 0 | E42: =E41 + Calculator!$D$24 -> 0
A43: 16 | B43: =B42 + Calculator!$B$23 + Calculator!$C$23 -> 0 | C43: =C42 + Calculator!$B$24 + Calculator!$C$24 -> 0 | D43: =D42+ Calculator!$D$23 -> 0 | E43: =E42 + Calculator!$D$24 -> 0
A44: 17 | B44: =B43 + Calculator!$B$23 + Calculator!$C$23 -> 0 | C44: =C43 + Calculator!$B$24 + Calculator!$C$24 -> 0 | D44: =D43+ Calculator!$D$23 -> 0 | E44: =E43 + Calculator!$D$24 -> 0
A45: 18 | B45: =B44 + Calculator!$B$23 + Calculator!$C$23 -> 0 | C45: =C44 + Calculator!$B$24 + Calculator!$C$24 -> 0 | D45: =D44+ Calculator!$D$23 -> 0 | E45: =E44 + Calculator!$D$24 -> 0
A46: 19 | B46: =B45 + Calculator!$B$23 + Calculator!$C$23 -> 0 | C46: =C45 + Calculator!$B$24 + Calculator!$C$24 -> 0 | D46: =D45+ Calculator!$D$23 -> 0 | E46: =E45 + Calculator!$D$24 -> 0
A47: 20 | B47: =B46 + Calculator!$B$23 + Calculator!$C$23 -> 0 | C47: =C46 + Calculator!$B$24 + Calculator!$C$24 -> 0 | D47: =D46+ Calculator!$D$23 -> 0 | E47: =E46 + Calculator!$D$24 -> 0
A48: 21 | B48: =B47 + Calculator!$B$23 + Calculator!$C$23 -> 0 | C48: =C47 + Calculator!$B$24 + Calculator!$C$24 -> 0 | D48: =D47+ Calculator!$D$23 -> 0 | E48: =E47 + Calculator!$D$24 -> 0
A49: 22 | B49: =B48 + Calculator!$B$23 + Calculator!$C$23 -> 0 | C49: =C48 + Calculator!$B$24 + Calculator!$C$24 -> 0 | D49: =D48+ Calculator!$D$23 -> 0 | E49: =E48 + Calculator!$D$24 -> 0
A50: 23 | B50: =B49 + Calculator!$B$23 + Calculator!$C$23 -> 0 | C50: =C49 + Calculator!$B$24 + Calculator!$C$24 -> 0 | D50: =D49+ Calculator!$D$23 -> 0 | E50: =E49 + Calculator!$D$24 -> 0
A51: 24 | B51: =B50 + Calculator!$B$23 + Calculator!$C$23 -> 0 | C51: =C50 + Calculator!$B$24 + Calculator!$C$24 -> 0 | D51: =D50+ Calculator!$D$23 -> 0 | E51: =E50 + Calculator!$D$24 -> 0
A52: 25 | B52: =B51 + Calculator!$B$23 + Calculator!$C$23 -> 0 | C52: =C51 + Calculator!$B$24 + Calculator!$C$24 -> 0 | D52: =D51+ Calculator!$D$23 -> 0 | E52: =E51 + Calculator!$D$24 -> 0
A53: 26 | B53: =B52 + Calculator!$B$23 + Calculator!$C$23 -> 0 | C53: =C52 + Calculator!$B$24 + Calculator!$C$24 -> 0 | D53: =D52+ Calculator!$D$23 -> 0 | E53: =E52 + Calculator!$D$24 -> 0
A54: 27 | B54: =B53 + Calculator!$B$23 + Calculator!$C$23 -> 0 | C54: =C53 + Calculator!$B$24 + Calculator!$C$24 -> 0 | D54: =D53+ Calculator!$D$23 -> 0 | E54: =E53 + Calculator!$D$24 -> 0
A55: 28 | B55: =B54 + Calculator!$B$23 + Calculator!$C$23 -> 0 | C55: =C54 + Calculator!$B$24 + Calculator!$C$24 -> 0 | D55: =D54+ Calculator!$D$23 -> 0 | E55: =E54 + Calculator!$D$24 -> 0
A56: 29 | B56: =B55 + Calculator!$B$23 + Calculator!$C$23 -> 0 | C56: =C55 + Calculator!$B$24 + Calculator!$C$24 -> 0 | D56: =D55+ Calculator!$D$23 -> 0 | E56: =E55 + Calculator!$D$24 -> 0
A57: 30 | B57: =B56 + Calculator!$B$23 + Calculator!$C$23 -> 0 | C57: =C56 + Calculator!$B$24 + Calculator!$C$24 -> 0 | D57: =D56+ Calculator!$D$23 -> 0 | E57: =E56 + Calculator!$D$24 -> 0

Sheet PHEV_Calcs (hidden)
A2: Solve equation: $749 = Electric fuel cost x X + (Gasoline fuel cost x (1-X))
A3: X = (Annual fuel cost - Gasoline fuel cost) ÷ (Electric fuel cost - Gasoline fuel cost)
A5: Kilometres per year | B5: =Calculator!B3 -> 20000
A6: Electricity ($/kWh) | B6: =Calculator!B6 -> 0.15
A7: Regular gasoline ($/L) | B7: =Calculator!B5 -> 1.5
A8: Premium gasoline ($/L) | B8: 1.1
B10: Electric mode | E10: Gasoline-only | G10: Composite annual | H10: Approx | I10: Annual electricity | J10: Annual gasoline | K10: Electricity | L10: Gasoline | M10: Annual GHGs | N10: Adjusted Composite annual
A11: Electric Vehicle | B11: kWh/100 km | C11: L/100 km | D11: Annual fuel cost | E11: Comb L/100 km | F11: Annual fuel cost | G11: fuel cost | H11: utility factor (X) | I11: use (kWh) | J11: use (L) | K11: cost | L11: cost | M11: Emitted (tCO2e) | N11: fuel cost
A12: CHEVROLET VOLT | B12: =Data!D3 -> 19.9 | C12: 0 | D12: =ROUND((B12*$B$5/100*$B$6)+(C12*$B$5/100*$B$7),2) -> 597 | E12: 5.6 | F12: =ROUND(E12*$B$5/100*$B$7,2) -> 1680 | G12: 655 | H12: =ROUND((G12-F12)/(D12-F12),4) -> 0.9464 | I12: =B12*$B$5/100*H12 -> 3766.672 | J12: =((E12*$B$5/100*(1-H12))) -> 60.032 | K12: =ROUND(I12*$B$6,0) -> 565 | L12: =ROUND(J12*$B$7,0) -> 90 | M12: =(I12*0.00057) + (J12*0.0023) -> 2.28507664 | N12: =K12 + L12 -> 655
A13: CHRYSLER PACIFICA HYBRID | B13: =Data!D4 -> 25.8 | C13: 0 | D13: =ROUND((B13*$B$5/100*$B$6)+(C13*$B$5/100*$B$7),2) -> 774 | E13: 8 | F13: =ROUND(E13*$B$5/100*$B$7,2) -> 2400 | G13: 1094 | H13: =ROUND((G13-F13)/(D13-F13),4) -> 0.8032 | I13: =B13*$B$5/100*H13 -> 4144.512 | J13: =((E13*$B$5/100*(1-H13))) -> 314.88 | K13: =ROUND(I13*$B$6,0) -> 622 | L13: =ROUND(J13*$B$7,0) -> 472 | M13: =(I13*0.00057) + (J13*0.0023) -> 3.08659584 | N13: =K13 + L13 -> 1094
A14: FORD ESCAPE PLUG-IN | B14: =Data!D5 -> 20.2 | C14: 0 | D14: 606 | E14: 5.8 | F14: =ROUND(E14*$B$5/100*$B$7,2) -> 1740 | G14: 795 | H14: =ROUND((G14-F14)/(D14-F14),4) -> 0.8333 | I14: 3366.532 | J14: 193.372 | K14: 505 | L14: 290 | M14: 2.36367884 | N14: 795
A15: FORD FUSION ENERGI | B15: =Data!D6 -> 20.5 | C15: 0 | D15: 615 | E15: 5.6 | F15: =ROUND(E15*$B$5/100*$B$7,2) -> 1680 | G15: 957 | H15: 0.6789 | I15: =B15*$B$5/100*H15 -> 2783.49 | J15: 359.632 | K15: 418 | L15: 539 | M15: 2.4137429 | N15: 957
A16: HONDA CLARITY PLUG-IN | B16: =Data!D7 -> 19 | C16: 0 | D16: 570 | E16: 5.6 | F16: 1680 | G16: 746 | H16: 0.8414 | I16: 3197.32 | J16: 177.632 | K16: 480 | L16: 266 | M16: 2.231026 | N16: 746
A17: HYUNDAI IONIQ PLUG-IN | B17: =Data!D8 -> 17.4 | C17: 0 | D17: 522 | E17: 4.5 | F17: 1350 | G17: 684 | H17: 0.8043 | I17: 2798.964 | J17: 176.13 | K17: 420 | L17: 264 | M17: 2.00050848 | N17: 684
A18: HYUNDAI SONATA PLUG-IN | B18: =Data!D9 -> 20.9 | C18: 0 | D18: 627 | E18: 6 | F18: =ROUND(E18*$B$5/100*$B$7,2) -> 1800 | G18: 836 | H18: 0.8218 | I18: 3435.124 | J18: 213.84 | K18: 515 | L18: 321 | M18: 2.44985268 | N18: 836
A19: HYUNDAI SANTA FE PLUG-IN | B19: =Data!D10 -> 27.5 | C19: 0 | D19: =ROUND((B19*$B$5/100*$B$6)+(C19*$B$5/100*$B$7),2) -> 825 | E19: 7.2 | F19: =ROUND(E19*$B$5/100*$B$7,2) -> 2160 | G19: 1081 | H19: 0.8082 | I19: 4445.1 | J19: 276.192 | K19: 667 | L19: 414 | M19: 3.1689486 | N19: 1081
A20: HYUNDAI TUCSON PLUG-IN | B20: =Data!D11 -> 25.9 | C20: 0 | D20: =ROUND((B20*$B$5/100*$B$6)+(C20*$B$5/100*$B$7),2) -> 777 | E20: 6.7 | F20: =ROUND(E20*$B$5/100*$B$7,2) -> 2010 | G20: 994 | H20: 0.824 | I20: 4268.32 | J20: 235.84 | K20: 640 | L20: 354 | M20: 2.9753744 | N20: 994
A21: GRAND CHEROKEE 4XE | B21: =Data!D12 -> 36 | C21: 0 | D21: =ROUND((B21*$B$5/100*$B$6)+(C21*$B$5/100*$B$7),2) -> 1080 | E21: 10 | F21: =ROUND(E21*$B$5/100*$B$7,2) -> 3000 | G21: 1516 | H21: 0.7729 | I21: 5564.88 | J21: 454.2 | K21: 835 | L21: 681 | M21: 4.2166416 | N21: 1516
A22: WRANGLER 4XE | B22: =Data!D13 -> 42.2 | C22: 0 | D22: =ROUND((B22*$B$5/100*$B$6)+(C22*$B$5/100*$B$7),2) -> 1266 | E22: 11.7 | F22: =ROUND(E22*$B$5/100*$B$7,2) -> 3510 | G22: 1814 | H22: 0.7558 | I22: 6378.952 | J22: 571.428 | K22: 957 | L22: 857 | M22: 4.95028704 | N22: 1814
A23: KIA NIRO PLUG-IN | B23: =Data!D14 -> 19.7 | C23: 0 | D23: =ROUND((B23*$B$5/100*$B$6)+(C23*$B$5/100*$B$7),2) -> 591 | E23: 5.1 | F23: 1530 | G23: 783 | H23: 0.7955 | I23: =B23*$B$5/100*H23 -> 3134.27 | J23: 208.59 | K23: 470 | L23: 313 | M23: =(I23*0.00057) + (J23*0.0023) -> 2.2662909 | N23: 783
A24: KIA OPTIMA PLUG-IN | B24: =Data!D15 -> 20.7 | C24: 0 | D24: 621 | E24: 5.7 | F24: 1710 | G24: 947 | H24: 0.7006 | I24: 2900.484 | J24: 341.316 | K24: 435 | L24: 512 | M24: 2.43830268 | N24: =K24 + L24 -> 947
A25: KIA SORENTO PLUG-IN | B25: =Data!D16 -> 26.4 | C25: 0 | D25: 792 | E25: 6.9 | F25: =ROUND(E25*$B$5/100*$B$7,2) -> 2070 | G25: 1019 | H25: 0.8224 | I25: 4342.272 | J25: 245.088 | K25: 651 | L25: 368 | M25: 3.03879744 | N25: =K25 + L25 -> 1019
A26: MINI COOPER S E COUNTRYMAN ALL4 | B26: =Data!D17 -> 28.4 | C26: 0 | D26: 852 | E26: 8 | F26: 2400 | G26: 1367 | H26: 0.6673 | I26: =B26*$B$5/100*H26 -> 3790.264 | J26: 532.32 | K26: =ROUND(I26*$B$6,0) -> 569 | L26: 798 | M26: 3.38478648 | N26: 1367
A27: MITSUBISHI OUTLANDER (PHEV) | B27: =Data!D18 -> 28.2 | C27: 0 | D27: 846 | E27: 9.1 | F27: 2730 | G27: 1317 | H27: 0.75 | I27: 4230 | J27: 455 | K27: 635 | L27: 683 | M27: 3.4576 | N27: 1318
A28: SUBARU CROSSTREK HYBRID | B28: =Data!D19 -> 23.5 | C28: 0 | D28: 705 | E28: 6.7 | F28: 2010 | G28: 1075 | H28: 0.7165 | I28: 3367.55 | J28: 379.89 | K28: 505 | L28: 570 | M28: 2.7932505 | N28: 1075
A29: TOYOTA PRIUS PRIME | B29: =Data!D20 -> 15.8 | C29: 0 | D29: 474 | E29: 4.3 | F29: 1290 | G29: 660 | H29: 0.7721 | I29: =B29*$B$5/100*H29 -> 2439.836 | J29: 195.994 | K29: =ROUND(I29*$B$6,0) -> 366 | L29: =ROUND(J29*$B$7,0) -> 294 | M29: 1.84149272 | N29: =K29 + L29 -> 660
A30: TOYOTA RAV4 PRIME | B30: =Data!D21 -> 22.3 | C30: 0 | D30: 669 | E30: 6 | F30: 1800 | G30: 833 | H30: 0.855 | I30: =B30*$B$5/100*H30 -> 3813.3 | J30: =((E30*$B$5/100*(1-H30))) -> 174 | K30: =ROUND(I30*$B$6,0) -> 572 | L30: =ROUND(J30*$B$7,0) -> 261 | M30: =(I30*0.00057) + (J30*0.0023) -> 2.573781 | N30: =K30 + L30 -> 833
A32: NOTE: Utility factor (x) assumes few trips are >100 kms. As such, the factor was calculated by taking the PHEV electric range and dividing by 100. This assumes that out of 100kms, x=% vehicle is driven in electric mode and 1-x = % vehicle is driven in gas mode.

Sheet Passenger EV Fuel Efficiency (hidden)
A1: Plug-in hybrid electric vehicles | D1: Understanding the table | M1: Battery-electric vehicles | Q1: Up to date as of: | S1: 2019-02-25
A2: Make ModelSpecificationsFootnote1 | B2: Fuel type | C2: Combined Le/100 km City/Hwy/Comb L/100 km | D2: $/yr | E2: CO2 (g/km) | F2: CO2 rating | G2: Smog rating | H2: Range (km) | I2: Recharge time (h) | J2: Price ($ USD) | K2: Price ($ CAD) | M2: Make ModelSpecifications2 | N2: Fuel type | O2: City/Hwy/Comb kWh/100 km City/Hwy/Comb Le/100 km | P2: $/yr | Q2: CO2 (g/km) | R2: CO2 rating | S2: Smog rating | T2: Range (km) | U2: Recharge time (h) | V2: Price ($ USD) | W2: Price ($ CAD)
A3: BMW 530e | M3: BMW i3 (120 Ah)
A4: C, 83 kW, 2.0 L, 4 cyl, AS8 | B4: B/Z* | C4: 3.3 (28.5 kWh/100 km + 0.0 L/100 km) | D4: 1464 | E4: 120 | F4: 10 | G4: 7 | H4: 26 | I4: 2 | M4: S, 125 kW, A1 | N4: B | O4: 16.8 / 20.6 / 18.5 | P4: 481 | Q4: 0 | R4: 10 | S4: 10 | T4: 246 | U4: 7 | V4: 44450 | W4: 57987
B5: Z | C5: 8.6 / 7.7 / 8.2 | H5: 560 | I5: - | O5: 1.9 / 2.3 / 2.1
A6: BMW 530e xDRIVE | M6: BMW i3s (120 Ah)
A7: C, 83 kW, 2.0 L, 4 cyl, AS8 | B7: B/Z* | C7: 3.5 (30.2 kWh/100 km + 0.0 L/100 km) | D7: 1511 | E7: 124 | F7: 10 | G7: 7 | H7: 24 | I7: 2 | J7: 53400 | K7: 69663 | M7: S, 125 kW, A1 | N7: B | O7: 16.8 / 20.6 / 18.5 | P7: 481 | Q7: 0 | R7: 10 | S7: 10 | T7: 246 | U7: 7
B8: Z | C8: 8.8 / 7.7 / 8.3 | H8: 554 | I8: - | O8: 1.9 / 2.3 / 2.1
A9: BMW 740e xDRIVE | M9: CHEVROLET BOLT EV
A10: L, 83 kW, 2.0 L, 4 cyl, AS8 | B10: B/Z* | C10: 3.6 (32.1 kWh/100 km + 0.0 L/100 km) | D10: 1616 | E10: 133 | F10: 9 | G10: 3 | H10: 23 | I10: 3 | M10: WS, 150 kW, A1 | N10: B | O10: 16.4 / 19.0 / 17.6 | P10: 458 | Q10: 0 | R10: 10 | S10: 10 | T10: 383 | U10: 9.3 | V10: 36620 | W10: 47773
B11: Z | C11: 9.5 / 8.0 / 8.8 | H11: 525 | I11: - | O11: 1.8 / 2.1 / 2.0
A12: BMW i3 REx (120 Ah) | M12: FIAT 500e
A13: S, 125 kW, 0.6 L, 2 cyl, A1 | B13: B/Z* | C13: 2.4 (19.9 kWh/100 km) | D13: 644 | E13: 14 | F13: 10 | G13: 7 | H13: 203 | I13: 7 | J13: 48300 | K13: 63010 | M13: S, 24 kW, A1 | N13: B | O13: 121/103/ 112 | T13: 135 | V13: 32995 | W13: 43044
B14: Z | C14: 7.8 / 7.5 / 7.7 | H14: 116 | I14: -
A15: BMW i3s REx | M15: HONDA CLARITY
A16: S, 135 kW, 0.6 L, 2 cyl, A1 | B16: B/Z* | C16: 2.4 (19.9 kWh/100 km) | D16: 644 | E16: 14 | F16: 10 | G16: 7 | H16: 203 | I16: 7 | J16: 48300 | K16: 63010 | M16: 120 kW | N16: B | O16: 16.5 / 20 / 18.5 | T16: 143 | U16: 3.5 | V16: 199 | W16: 260
B17: Z | C17: 7.8 / 7.5 / 7.7 | H17: 116 | I17: - | O17: 1.9 / 2.3 / 2.1 | V17: (Lease Only) | W17: (Lease Only)
A18: BMW i8 COUPE | M18: HYUNDAI IONIQ ELECTRIC
A19: S, 105 kW, 1.5 L, 3 cyl, AS6 | B19: B/Z* | C19: 3.4 (30.6 kWh/100 km + 0.0 L/100 km) | D19: 1512 | E19: 118 | F19: 10 | G19: 3 | H19: 29 | I19: 3 | J19: 147500 | K19: 192421 | M19: M, 88 kW, A1 | N19: B | O19: 13.7 / 17.4 / 15.5 | P19: 403 | Q19: 0 | R19: 10 | S19: 10 | T19: 200 | U19: 4 | V19: 30315 | W19: 39547
B20: Z | C20: 9.2 / 8.0 / 8.7 | H20: 488 | I20: - | O20: 1.6 / 1.9 / 1.7
A21: BMW i8 ROADSTER | M21: HYUNDAI KONA ELECTRIC
A22: S, 105 kW, 1.5 L, 3 cyl, AS6 | B22: B/Z* | C22: 3.4 (30.6 kWh/100 km + 0.0 L/100 km) | D22: 1512 | E22: 118 | F22: 10 | G22: 3 | H22: 29 | I22: 3 | M22: US, 150 kW, A1 | N22: B | O22: 16.2 / 19.3 / 17.4 | P22: 452 | Q22: 0 | R22: 10 | S22: 10 | T22: 415 | U22: 9 | V22: 36950 | W22: 48203
B23: Z | C23: 9.2 / 8.0 / 8.7 | H23: 488 | I23: - | O23: 1.8 / 2.2 / 2.0
A24: CHEVROLET VOLT | M24: JAGUAR I-PACE
A25: C, 111 kW, 1.5 L, 4 cyl, AV | B25: B | C25: 2.2 (19.9 kWh/100 km) | D25: 655 | E25: 32 | F25: 10 | G25: 3 | H25: 85 | I25: 4.5 | J25: 33520 | K25: 43729 | M25: US, 294 kW, A1 | N25: B | O25: 26.2 / 29.1 / 27.5 | P25: 715 | Q25: 0 | R25: 10 | S25: 10 | T25: 377 | U25: 13 | V25: 69500 | W25: 90666
B26: X | C26: 5.5 / 5.6 / 5.6 | H26: 591 | I26: - | O26: 2.9 / 3.3 / 3.1
A27: CHRYSLER PACIFICA HYBRID | M27: KIA NIRO
A28: V, 89 kW, 3.6 L, 6 cyl, AV | B28: B/X* | C28: 2.9 (25.8 kWh/100 km + 0.0 L/100 km) | D28: 1043 | E28: 74 | F28: 10 | G28: 7 | H28: 51 | I28: 2 | J28: 39995 | K28: 52175 | M28: 170 kW | O28: 17.5 / 20.5 / 19 | T28: 385 | U28: 9.5 | V28: 38500 | W28: 50225
B29: X | C29: 8.0 / 7.9 / 8.0 | H29: 784 | I29: - | O29: 1.9 / 2.3 / 2.1
A30: FORD FUSION ENERGI | M30: KIA SOUL EV
A31: M, 68 kW, 2.0 L, 4 cyl, AV | B31: B/X* | C31: 2.3 (20.5 kWh/100 km + 0.0 L/100 km) | D31: 812 | E31: 61 | F31: 10 | G31: 7 | H31: 42 | I31: 2.6 | J31: 34595 | K31: 45131 | M31: WS, 81 kW, A1 | N31: B | O31: 16.8 / 22.4 / 19.3 | P31: 502 | Q31: 0 | R31: 10 | S31: 10 | T31: 179 | U31: 5 | V31: 33950 | W31: 44289
B32: X | C32: 5.5 / 5.8 / 5.6 | H32: 940 | I32: - | O32: 1.9 / 2.5 / 2.2
A33: HONDA CLARITY PLUG-IN | M33: NISSAN LEAF (40 kWh)
A34: M, 135 kW, 1.5 L, 4 cyl, AV | B34: B/X* | C34: 2.1 (19.0 kWh/100 km + 0.0 L/100 km) | D34: 669 | E34: 36 | F34: 10 | G34: 8 | H34: 77 | I34: 2.5 | J34: 33400 | K34: 43572 | M34: M, 110 kW, A1 | N34: B | O34: 16.8 / 21.0 / 18.7 | P34: 486 | Q34: 0 | R34: 10 | S34: 10 | T34: 243 | U34: 8 | V34: 29990 | W34: 39123
B35: X | C35: 5.3 / 5.9 / 5.6 | H35: 475 | I35: - | O35: 1.9 / 2.4 / 2.1
A36: HYUNDAI IONIQ ELECTRIC PLUS | M36: NISSAN LEAF S PLUS
A37: M, 32 kW, 1.6 L, 4 cyl, AM6 | B37: B/X* | C37: 2.0 (17.7 kWh/100 km + 0.0 L/100 km) | D37: 655 | E37: 46 | F37: 10 | G37: 7 | H37: 47 | I37: 2.3 | J37: 25350 | K37: 33070 | M37: M, 160 kW, A1 | N37: B | O37: 17.8 / 21.5 / 19.5 | P37: 507 | Q37: 0 | R37: 10 | S37: 10 | T37: 363 | U37: 11 | V37: 36550 | W37: 47681
B38: X | C38: 4.4 / 4.6 / 4.5 | H38: 961 | I38: - | O38: 2.0 / 2.4 / 2.2
A39: HYUNDAI SONATA PLUG-IN | M39: NISSAN LEAF SV/SL PLUS
A40: M, 50 kW, 2.0 L, 4 cyl, AM6 | B40: B/X* | C40: 2.4 (20.9 kWh/100 km + 0.0 L/100 km) | D40: 836 | E40: 62 | F40: 10 | G40: 7 | H40: 45 | I40: 2.7 | J40: 33400 | K40: 43572 | M40: M, 160 kW, A1 | N40: B | O40: 18.7 / 22.1 / 20.0 | P40: 520 | Q40: 0 | R40: 10 | S40: 10 | T40: 349 | U40: 11 | V40: 37095 | W40: 48392
B41: X | C41: 6.3 / 5.6 / 6.0 | H41: 925 | I41: - | O41: 2.1 / 2.5 / 2.2
A42: KARMA REVERO | M42: SMART FORTWO ELECTRIC DRIVE CABRIOLET
A43: S, 300 kW, 2.0 L, 4 cyl, A1 | B43: B | C43: 3.9 (34.7 kWh/100 km) | D43: 1526 | E43: 94 | F43: 10 | G43: 1 | H43: 60 | I43: 3.75 | J43: 130000 | K43: 169592 | M43: T, 60 kW, A1 | N43: B | O43: 18.7 / 23.1 / 20.7 | P43: 538 | Q43: 0 | R43: 10 | S43: 10 | T43: 92 | U43: 3
B44: Z | C44: 11.8 / 11.2 / 11.5 | H44: 328 | I44: - | O44: 2.1 / 2.6 / 2.3
A45: KIA NIRO PLUG-IN | M45: SMART FORTWO ELECTRIC DRIVE COUPE
A46: M, 32 kW,1.6 L, 4 cyl, AM6 | B46: B/X* | C46: 2.2 (19.7 kWh/100 km + 0.0 L/100 km) | D46: 753 | E46: 56 | F46: 10 | G46: 7 | H46: 42 | I46: 2.25 | J46: 28500 | K46: 37180 | M46: T, 60 kW, A1 | N46: B | O46: 16.9 / 22.3 / 19.3 | P46: 502 | Q46: 0 | R46: 10 | S46: 10 | T46: 93 | U46: 3 | V46: 23900 | W46: 31179
B47: X | C47: 4.9 / 5.3 / 5.1 | H47: 853 | I47: - | O47: 1.9 / 2.5 / 2.2
A48: KIA OPTIMA PLUG-IN | M48: TESLA MODEL 3 Mid Range
A49: M, 50 kW, 2.0 L, 4 cyl, AM6 | B49: B/X* | C49: 2.3 (20.3 kWh/100 km + 0.0 L/100 km) | D49: 816 | E49: 60 | F49: 10 | G49: 7 | H49: 47 | I49: 2.7 | J49: 35390 | K49: 46168 | M49: M, 202 kW, A1 | N49: B | O49: 16.4 / 17.9 / 17.1 | P49: 445 | Q49: 0 | R49: 10 | S49: 10 | T49: 425 | U49: 10 | V49: 35000 | W49: 45659
B50: X | C50: 6.2 / 5.5 / 5.9 | H50: 937 | I50: - | O50: 1.8 / 2.0 / 1.9
A51: MERCEDES-BENZ GLC 350e 4MATIC | M51: TESLA MODEL 3 Long Range
A52: US, 85 kW, 2.0 L, 4 cyl, AS7 | B52: B/Z* | C52: 4.2 (36.5 kWh/100 km + 0.0 L/100 km) | D52: 1765 | E52: 146 | F52: 9 | G52: 7 | H52: 21 | I52: 1.9 | J52: 50650 | K52: 66075 | M52: M, 202 kW, A1 | N52: B | O52: 15.3 / 17.0 / 16.1 | P52: 419 | Q52: 0 | R52: 10 | S52: 10 | T52: 499 | U52: 10
B53: Z | C53: 9.8 / 8.6 / 9.3 | H53: 541 | I53: - | O53: 1.7 / 1.9 / 1.8
A54: MINI COOPER S E COUNTRYMAN ALL4 | M54: TESLA MODEL 3 Long Range AWD
A55: M, 65 kW, 1.5 L, 3 cyl, AS6 | B55: B/Z* | C55: 3.6 (31.4 kWh/100 km + 0.0 L/100 km) | D55: 1623 | E55: 139 | F55: 9 | G55: 3 | H55: 19 | I55: 3 | J55: 36900 | K55: 48138 | M55: M, 335 kW, A1 | N55: B | O55: 17.4 / 18.7 / 18.0 | P55: 468 | Q55: 0 | R55: 10 | S55: 10 | T55: 499 | U55: 10
B56: Z | C56: 8.4 / 8.8 / 8.6 | H56: 420 | I56: - | O56: 2.0 / 2.1 / 2.0
A57: MITSUBISHI OUTLANDER PHEV AWD | M57: TESLA MODEL 3 Long Range AWD Performance
A58: US, 60 kW, 2.0 L, 4 cyl, A1 | B58: B/X* | C58: 3.2 (27.7 kWh/100 km + 0.0 L/100 km) | D58: 1316 | E58: 108 | F58: 10 | G58: 7 | H58: 35 | I58: 3.5 | J58: 34595 | K58: 45131 | M58: M, 358 kW, A1 | N58: B | O58: 17.4 / 18.7 / 18.0 | P58: 468 | Q58: 0 | R58: 10 | S58: 10 | T58: 499 | U58: 10
B59: X | C59: 9.4 / 9.0 / 9.2 | H59: 463 | I59: - | O59: 2.0 / 2.1 / 2.0
A60: TOYOTA PRIUS PRIME | M60: TESLA MODEL S 75D
A61: M, 71 kW, 1.8 L, 4 cyl, AV | B61: B/X* | C61: 1.8 (15.8 kWh/100 km + 0.0 L/100 km) | D61: 635 | E61: 49 | F61: 10 | G61: 7 | H61: 40 | I61: 2 | J61: 27350 | K61: 35679 | M61: L,368 kW, A1 | N61: B | O61: 20.7 / 20.5 / 20.6 | P61: 536 | Q61: 0 | R61: 10 | S61: 10 | T61: 417 | U61: 12 | V61: 78000 | W61: 101755
B62: X | C62: 4.3 / 4.4 / 4.3 | H62: 995 | I62: - | O62: 2.3 / 2.3 / 2.3
A63: VOLVO S90 T8 AWD | M63: TESLA MODEL S 100D
A64: M, 65 kW, 2.0 L, 4 cyl, AS8 | B64: B/Z* | C64: 3.2 (27.7 kWh/100 km + 0.0 L/100 km) | D64: 1338 | E64: 100 | F64: 10 | G64: 7 | H64: 34 | I64: 3 | J64: 63900 | K64: 83361 | M64: L, 386 kW, A1 | N64: B | O64: 20.7 / 20.5 / 20.6 | P64: 536 | Q64: 0 | R64: 10 | S64: 10 | T64: 539 | U64: 12
B65: Z | C65: 8.9 / 7.1 / 8.1 | H65: 753 | I65: - | O65: 2.3 / 2.3 / 2.3
A66: VOLVO XC60 T8 AWD | M66: TESLA MODEL S P100D
A67: US, 65 kW, 2.0 L, 4 cyl, AS8 | B67: B/Z* | C67: 3.8 (34.0 kWh/100 km + 0.0 L/100 km) | D67: 1613 | E67: 128 | F67: 9 | G67: 7 | H67: 27 | I67: 3 | J67: 55300 | K67: 72142 | M67: L, 568 kW, A1 | N67: B | O67: 22.6 / 20.0 / 21.5 | P67: 559 | Q67: 0 | R67: 10 | S67: 10 | T67: 507 | U67: 12
B68: Z | C68: 9.5 / 8.5 / 9.0 | H68: 779 | I68: - | O68: 2.5 / 2.3 / 2.4
A69: VOLVO XC90 T8 AWD | M69: TESLA MODEL X 75D
A70: UL, 65 kW, 2.0 L, 4 cyl, AS8 | B70: B/Z* | C70: 3.9 (34.4 kWh/100 km + 0.0 L/100 km) | D70: 1658 | E70: 132 | F70: 9 | G70: 7 | H70: 27 | I70: 3 | J70: 67000 | K70: 87405 | M70: UL, 386 kW, A1 | N70: B | O70: 23.0 / 21.9 / 22.5 | P70: 585 | Q70: 0 | R70: 10 | S70: 10 | T70: 383 | U70: 12 | V70: 83000 | W70: 108278
B71: Z | C71: 9.8 / 8.7 / 9.3 | H71: 756 | I71: - | O71: 2.6 / 2.5 / 2.5
M72: TESLA MODEL X 100D
A73: 2019 PHEV Options: | M73: UL, 386 kW, A1 | N73: B | O73: 24.3 / 23.7 / 24.0 | P73: 624 | Q73: 0 | R73: 10 | S73: 10 | T73: 475 | U73: 12
A74: 23 | O74: 2.7 / 2.7 / 2.7
A75: Number of Manufacturers: | M75: TESLA MODEL X P100D
A76: 13 | M76: UL, 568 kW, A1 | N76: B | O76: 25.4 / 23.6 / 24.6 | P76: 640 | Q76: 0 | R76: 10 | S76: 10 | T76: 465 | U76: 12
A77: Likely Eligible for EVM: | O77: 2.8 / 2.7 / 2.8
A78: 11 | M78: VOLKSWAGEN e-GOLF
M79: C, 100 kW, A1 | N79: B | O79: 16.8 / 18.6 / 17.4 | P79: 452 | Q79: 0 | R79: 10 | S79: 10 | T79: 201 | U79: 5.3 | V79: 31895 | W79: 41609
O80: 1.9 / 2.1 / 2.0
M82: 2019 BEV Options:
M83: 23
M84: Number of Manufacturers:
M85: 9
M86: Likely Eligible for EVM:
M87: 11
M89: Source for vehicle pricing: https://pluginamerica.org/wp-content/uploads/2019/06/EV-Guide-2019-June-4-pages.pdf
M93: 22 passenger vehicle models currently eligible
